{"text_format":"1","workbook":"xlsx","n_sheets":4,"sheets":["ガイド","抽出結果","別紙","施設一覧"],"not_rendered":{"charts":0,"images":7,"macros":1,"external_links":0,"defined_names":32,"comments":2,"pivot_tables":0},"unopened":[],"bounds":{"document_bytes":16777216,"sheet_cells":100000,"rows_first":2000,"rows_last":500,"rows_between":2000,"halvings":0,"cell_chars":16384,"cell_head_chars":4096},"cells_cut":0,"cells_raw":0,"read":"whole","date_system":"1900"}

{"sheet":"ガイド","index":0,"n_rows":20,"n_cols":31,"rows_kept":20,"cut":false,"hidden":false,"merged":[[0,11,0,13],[2,5,2,7],[0,2,0,8],[19,3,19,4],[9,5,9,6],[10,5,10,6],[17,3,17,4],[11,5,11,6],[6,5,6,6],[18,8,20,12],[12,5,12,6],[8,5,8,6],[7,5,7,6],[1,9,1,11],[3,26,3,27],[5,5,5,6],[1,26,1,27],[2,26,2,27],[3,5,3,6],[4,5,4,6]]}
[null,null,"市町村勤労者互助会・共済会のごあんない",null,null,null,null,null,null,null,null,"令和８年度版",null,null,null,null,null,null,null,null,null,"エリア",null,"施設区分"]
[null,null,null,null,null,"利用施設一覧",null,null,null,null,null,null,null,null,null,null,null,null,null,null,null,"北信",1,"宿泊",1,null,"検索キー１",null,{"$f":"SUMIF(V2:V7,D18,W2:W7)","v":0},null,"エリア"]
[null,null,null,null,null,"現在の登録施設数",null,null,{"$f":"施設一覧!AC2","v":"北信"},{"$f":"施設一覧!AD2","v":"東信"},{"$f":"施設一覧!AE2","v":"中信"},{"$f":"施設一覧!AF2","v":"南信"},{"$f":"施設一覧!AG2","v":"県外"},null,null,null,null,null,null,null,null,"東信",2,"観光",2,null,"検索キー２",null,{"$f":"SUMIF(X2:X11,D20,Y2:Y11)","v":0},null,"施設区分"]
[null,null,null,null,null,"宿泊",null,{"$f":"施設一覧!AB4","v":19},{"$f":"施設一覧!AC4","v":7},{"$f":"施設一覧!AD4","v":4},{"$f":"施設一覧!AE4","v":2},{"$f":"施設一覧!AF4","v":6},{"$f":"施設一覧!AG4","v":0},null,null,null,null,null,null,null,null,"中信",3,"食事",3,null,"検索キー３",null,{"$f":"AC2&AC3","v":"00"},null,"施設名"]
[null,null,null,null,null,"観光",null,{"$f":"施設一覧!AB5","v":11},{"$f":"施設一覧!AC5","v":7},{"$f":"施設一覧!AD5","v":3},{"$f":"施設一覧!AE5","v":1},{"$f":"施設一覧!AF5","v":0},{"$f":"施設一覧!AG5","v":0},null,null,null,null,null,null,null,null,"南信",4,"スキー",4,null,null,null,null,null,"施設HP(URL)"]
[null,null,null,null,null,"食事",null,{"$f":"施設一覧!AB6","v":1},{"$f":"施設一覧!AC6","v":1},{"$f":"施設一覧!AD6","v":0},{"$f":"施設一覧!AE6","v":0},{"$f":"施設一覧!AF6","v":0},{"$f":"施設一覧!AG6","v":0},null,null,null,null,null,null,null,null,"県外",5,"キャンプ",5,null,null,null,null,null,"施設HP(URL)"]
[null,null,null,null,null,"スキー",null,{"$f":"施設一覧!AB7","v":5},{"$f":"施設一覧!AC7","v":3},{"$f":"施設一覧!AD7","v":1},{"$f":"施設一覧!AE7","v":1},{"$f":"施設一覧!AF7","v":0},{"$f":"施設一覧!AG7","v":0},null,null,null,null,null,null,null,null,null,null,"温泉",6,null,null,null,null,null,"所在地"]
[null,null,null,null,null,"キャンプ",null,{"$f":"施設一覧!AB8","v":2},{"$f":"施設一覧!AC8","v":0},{"$f":"施設一覧!AD8","v":1},{"$f":"施設一覧!AE8","v":0},{"$f":"施設一覧!AF8","v":1},{"$f":"施設一覧!AG8","v":0},null,null,null,null,null,null,null,null,null,null,"ゴルフ",7,null,null,null,null,null,"ＴＥＬ"]
[null,null,null,null,null,"温泉",null,{"$f":"施設一覧!AB9","v":5},{"$f":"施設一覧!AC9","v":4},{"$f":"施設一覧!AD9","v":1},{"$f":"施設一覧!AE9","v":0},{"$f":"施設一覧!AF9","v":0},{"$f":"施設一覧!AG9","v":0},null,null,null,null,null,null,null,null,null,null,"レジャー",8,null,null,null,null,null,"ＦＡＸ"]
[null,null,null,null,null,"ゴルフ",null,{"$f":"施設一覧!AB10","v":0},{"$f":"施設一覧!AC10","v":0},{"$f":"施設一覧!AD10","v":0},{"$f":"施設一覧!AE10","v":0},{"$f":"施設一覧!AF10","v":0},{"$f":"施設一覧!AG10","v":0},null,null,null,null,null,null,null,null,null,null,"その他",9,null,null,null,null,null,"通常料金等"]
[null,null,null,null,null,"レジャー",null,{"$f":"施設一覧!AB11","v":4},{"$f":"施設一覧!AC11","v":4},{"$f":"施設一覧!AD11","v":0},{"$f":"施設一覧!AE11","v":0},{"$f":"施設一覧!AF11","v":0},{"$f":"施設一覧!AG11","v":0},null,null,null,null,null,null,null,null,null,null,null,null,null,null,null,null,null,"割引内容等"]
[null,null,null,null,null,"その他",null,{"$f":"施設一覧!AB12","v":17},{"$f":"施設一覧!AC12","v":5},{"$f":"施設一覧!AD12","v":4},{"$f":"施設一覧!AE12","v":3},{"$f":"施設一覧!AF12","v":5},{"$f":"施設一覧!AG12","v":0},null,null,null,null,null,null,null,null,null,null,null,null,null,null,null,null,null,"推薦理由"]
[null,null,null,null,null,"合計",null,{"$f":"施設一覧!AB13","v":64},{"$f":"施設一覧!AC13","v":31},{"$f":"施設一覧!AD13","v":14},{"$f":"施設一覧!AE13","v":7},{"$f":"施設一覧!AF13","v":12},{"$f":"施設一覧!AG13","v":0},null,null,null,null,null,null,null,null,null,null,null,null,null,null,null,null,null,"観光スポット"]
[null,"※全データをご覧になりたい場合、または加工したい場合は、施設一覧シートを利用してください。",null,null,null,null,null,null,null,null,null,null,null,null,null,null,null,null,null,null,null,null,null,null,null,null,null,null,null,null,"取り扱い互助会"]
[null,"※記載されている内容は令和8年４月1日現在の内容となります。割引等変更される場合がありますのでご利用の際はお問い合わせください。"]
[]
[]
[null,null,"エリア指定",null,null,null,"①",null,null,null,"②",null,null,null,null,"③"]
[null,null,null,null,null,null,null,null,{"$f":"CONCATENATE(\"検索された件数は　\",施設一覧!T1,\"件です。　　該当施設の詳細を見る場合は右の【施設表示】をクリックしてください。\")","v":"検索された件数は　件です。　　該当施設の詳細を見る場合は右の【施設表示】をクリックしてください。"}]
[null,null,"施設区分指定"]

{"sheet":"抽出結果","index":1,"n_rows":15,"n_cols":29,"rows_kept":15,"cut":false,"hidden":false,"merged":[]}
[null,"ページ　1","ページ　2","ページ　3","ページ　4","ページ　5","ページ　6","ページ　7","ページ　8","ページ　10","ページ　11","ページ　12","ページ　13","ページ　14","ページ　15","ページ　16","ページ　17","ページ　18","ページ　19","ページ　20","ページ　21","ページ　22","ページ　23","ページ　24","ページ　25","ページ　26","ページ　27","ページ　28","ページ　29"]
["エリア"]
["施設区分"]
["施設名称"]
["施設HP(URL)"]
["施設HP(URL)"]
["所在地"]
["ＴＥＬ"]
["ＦＡＸ"]
["通常料金等"]
["割引内容等"]
["施設からひと言"]
["観光スポット"]
["推薦理由"]
["取り扱い互助会（登録時）"]

{"sheet":"別紙","index":2,"n_rows":12,"n_cols":10,"rows_kept":12,"cut":false,"hidden":false,"merged":[[16,5,16,6],[16,7,16,8],[15,3,15,4],[17,7,17,8],[15,7,15,8],[15,5,15,6],[17,5,17,6],[15,11,15,12],[8,8,8,9],[11,3,11,5],[12,3,12,9],[8,6,8,7],[0,1,0,2],[2,1,2,4],[3,2,3,5],[10,3,10,5],[4,2,4,5]]}
[null,"別紙掲載事項",null,null,null,null,"ガイドに戻る",null,"抽出結果に戻る"]
[]
[null,"＜別紙＞　無し"]
[null,null,"①伊那谷道中かぶちゃん村"]
[null,null,"スペース"]
[]
[]
[null,null,null,"①伊那谷道中かぶちゃん村"]
[null,null,null,null,null,null,"通常時料金",null,"割引時料金"]
[null,null,null,null,null,null,"大  人","小  人","大  人","小  人"]
[null,null,null,"入場料",null,null,"８００円","５００円","７００円","４００円"]
[null,null,null,"満願成就の湯 入浴料",null,null,"８００円","５００円","７００円","４００円"]

{"sheet":"施設一覧","index":3,"n_rows":143,"n_cols":36,"rows_kept":143,"cut":false,"hidden":false,"merged":[[0,14,0,16],[0,23,0,33],[1,23,1,24],[1,25,1,26],[0,17,0,18]]}
[null,null,null,null,null,null,null,null,null,null,null,null,null,null,"メモ欄として利用（この部分は抽出結果には反映しません）",null,null,"必須項目",null,{"$f":"IF(SUBTOTAL(3,T4:T136)>AB13,\"\",SUBTOTAL(3,T4:T136))","v":""},null,null,null,"リストおよび計算部分　　重要"]
["エリア","施設区分","施設名","施設HP(URL)","ダミー","所在地","ＴＥＬ","ＦＡＸ","通常料金等","割引内容等","施設からセールスポイントをひと言","観光スポット","推薦理由","取り扱い互助会（登録時）","連絡事項メモ　１　","連絡事項メモ　２　","連絡事項メモ　３　","エリア番号","区分番号","エリア＋区分",null,null,null,"エリア",null,"施設区分",null,"施設数カウント","北信","東信","中信","南信","県外","チェック","個別連番"]
[]
["北信","宿泊","信州不動温泉さぎり荘","http://www.sagirisou.com/",{"$f":"IF(D4=\"\",\"\",\"\")","v":""},"長野市信州新町大字日原西３００ー１","０２６-２６４-２１０３","０２６-２６４-２７３９","１泊２食付大人 １３，０００円・小人　１１，７００円\n消費税込みの金額です（大人入湯税１５０円別途）","宿泊の場合１，０００円引き\n日帰入浴の場合５００円引き","お子様から大人まで楽しめます。温泉、レストラン、マレットゴルフ、ゲートボール","・不動滝・琵琶滝・琵琶滝如来・柳久保池","・和風の設備、レストラン、広場、多目的ホール、温泉浴場、日本庭園、大型遊具、多彩なスポーツ施設を備えているため。","（一財）長野市勤労者共済会","10.5料金変更（引下げ）\n2009.4料金・割引内容変更","2014.4料金・割引内容変更\n2018.2料金・割引・スポット変更","2020..2施設名・通常料金変更",{"$f":"IF(A4=\"\",\"\",SUMIF($X$4:$X$9,A4,$Y$4:$Y$9))","v":1},{"$f":"IF(B4=\"\",\"\",SUMIF($Z$4:$AA$13,B4,$AA$4:$AA$13))","v":1},{"$f":"R4&S4","v":"11"},null,null,null,"北信",1,"宿泊",1,{"$f":"COUNTIF(S:S,AA4)","v":19},{"$f":"COUNTIF($T$2:$T$1048576,$Y$4&$AA4)","v":7},{"$f":"COUNTIF($T:$T,$Y$5&$AA4)","v":4},{"$f":"COUNTIF($T:$T,$Y$6&$AA4)","v":2},{"$f":"COUNTIF($T:$T,$Y$7&$AA4)","v":6},{"$f":"COUNTIF($T:$T,$Y$8&$AA4)","v":0},{"$f":"SUM(AC4:AG4)","v":19},1,1]
["北信","宿泊","ペンション　ウィスキージャック","https://wjyui4.wixsite.com/pension-whiskey-jack","","上水内郡飯綱町大字川上２７５５ー１６０３","０２６-２５３-６７２２","０２６-２５３-６７２２","通常料金 ２～3名様 1部屋ご利用 １泊２食⇒１１，５００円(1名様)","割引料金 通常料金の10％引き(年末年始・GW(5月)・夏期8/13～16日適用外)","1名様のご利用、食事なし等につきましてはHPをご覧ください。","・飯綱東高原家族旅行村・戸隠高原・善光寺・小布施・野尻湖・黒姫高原","・社団法人全国中小企業勤労者福祉サービスセンター（全福センター）と割引協定契約施設として、以前から行われているから。","飯綱勤労者互助会","14.4通常･割引料金変更\n15.4FAX№変更","2020.2通常料金・割引変更","2020.2通常料金・割引変更",1,1,"11",null,null,null,"東信",2,"観光",2,11,{"$f":"COUNTIF($T:$T,$Y$4&$AA5)","v":7},3,1,0,0,11,2,1]
["北信","宿泊","ペンション　ハロー・ララ！","http://hallolala.com/","","上水内郡飯綱町川上２７５５－４６","０２６-２５３-７８６９","０２６-２５３-２４１９","８,６００円 　暖房費３００円（冬季）","８,３００円  暖房費３００円（冬季）","自家農園の無農薬・無化学肥料の野菜等を積極的に使っています。\n野外炭火焼バーべＱ可（夏期）。","・飯綱東高原家族旅行村（むれ温泉天狗の館・霊仙寺湖・グラウンド・テニスコート等）いいづなリゾートスキー場・水芭蕉園・丹霞郷（桃園）","・飯綱東高原の良さを多くの方々に見て、感じて頂きたい。","飯綱勤労者互助会","2009.4ｺﾒﾝﾄ修正\n14.4通常、割引料金変更","19.3　住所・施設からのひと言変更","2020.2通常料金・割引変更",1,1,"11",null,null,null,"中信",3,"食事",3,1,1,0,0,0,0,1,3,1]
["北信","宿泊","ピュアハウスもとやま","http://purehouse-motoyama.world.coocan.jp/",{"$f":"IF(D7=\"\",\"\",\"\")","v":""},"上水内郡飯綱町川上２７５５ー１８７２","０２６-２５３-６６３１","０２６-２５３-６６３１","１泊２食付税別大人１０，０００円小学生８，０００円","１泊２食付税込み大人９，０００円小学生７，０００円幼児無料(食事なし)","春の山菜取り。夏のマウンテンバイクツアー、登山。冬の一緒に滑ろう楽しいスキーツアー。","・水芭蕉園・桃の丹霞郷・霊仙寺湖・ゴルフ場・テニスコート・りんご狩り・そば打ち・いいづなリゾートスキー場・むれ温泉天狗の館・キャンプ場・自然散策の中心","・互助会会員及びその家族の福利厚生に寄与し、当施設をはじめ、地域の利用増進を図りたい。","飯綱勤労者互助会","13.3割引変更\n2018.2ＨＰ修正",null,null,1,1,"11",null,null,null,"南信",4,"スキー",4,5,3,1,1,0,0,5,4,1]
["北信","宿泊","上林ホテル仙壽閣","http://www.senjukaku.com/","","下高井郡山ノ内町上林温泉","０２６９-３３-３５５１","０２６９-３３-０７８７","シーズン、平日、休前日、部屋タイプにより料金差あり。(1泊２食、税込み、入湯税別)　\n標準客室25,300～42,900円、離れ34,100～47,300円、特別室34,100～52,800円","宿泊料金は通常料金の１５％割引。","毎分720リットルの湯量を24時間かけ流しといったぜいたくな温泉・大浴場は訪れる人を楽しませます。「和魂洋才」新しい和風ホテル・旅館の創造性を生かし、ゆったりとした空間でお客様をお迎えいたしております。","・地獄谷野猿公苑（徒歩30分）温泉に入る習性を身につけた世界的にも珍しい野猿の生息地　・志賀高原ロマン美術館（近在）　",null,"山ノ内町勤労者互助会","06.6.1締結、07.5通常料金変更\n07.9.1割引内容変更","2009.4観光ｽﾎﾟｯﾄ表記変更",null,1,1,"11",null,null,null,"県外",5,"キャンプ",5,2,0,1,0,1,0,2,5,1]
["北信","宿泊","野沢グランドホテル","http://www.nozawagrand.com/","","下高井郡野沢温泉村豊郷８８８８","０２６９-８５-３１５1","０２６９-８５-３１５０","和室２名：１６，０００円～（１泊２食付・税別）","和室２名：１０，０００円（１泊２食付・税別・平日）\n休日前日　和室２名：１２，０００円（１泊２食付・税別）\n※特期割引なし","名湯野沢温泉「温泉力」を最大限に活用し、源泉かけ流しの露天風呂付き客室や、貸切露天風呂に隣接し、大浴場とは泉質の違う「天下の名湯真湯」を引湯した眺望の素晴らしい男女別の展望露天風呂が好評です。","・外湯めぐり、１３の共同浴場（無料）それぞれ泉質・効能が異なります。　・健命寺、野沢菜発祥の地として有名なお寺、5月上旬菜の花が見頃　・日本スキー博物館、競技資料、スキー道具の変遷、雪国の民俗品がスキー史を語ります。　・野沢温泉スキー場　毛無山から広がるダイナミックなスキーエリア",null,"山ノ内町勤労者互助会","06.6.1締結\n07.9.1割引内容変更","2012.04コメント変、14.4通常料金変更\n2018.2ＨＰ修正",null,1,1,"11",null,null,null,null,null,"温泉",6,5,4,1,0,0,0,5,6,1]
["北信","宿泊","SBC　RESORT　KIJIMADAIRA","http://www.panorama-kijima.com/",null,"下高井郡木島平村上木島３８７８－２","０２６９-８２-３００１\n","０２６９-８２-３１３０",null,"宿泊代、通常料金の１０％割引。　\n入浴代　大人８００円→６００円　小人３００円（割引なし）","最新の「スノーリゾートロマンスの神様」のスキー場徒歩０分！\n北信州が一望できる大パノラマが自慢のホテルです。信州プレミアム牛やみゆきポークなど\n地元の美味い料理も大人気バイキングでお楽しみ頂けます。","・やまびこの丘公園（山に恋するキャンプ場）",null,"飯水岳北勤労者共済会","14.4新規契約\n2018.2ＨＰ修正",null,null,{"$f":"IF(A10=\"\",\"\",SUMIF($X$4:$X$9,A10,$Y$4:$Y$9))","v":1},{"$f":"IF(B10=\"\",\"\",SUMIF($Z$4:$AA$13,B10,$AA$4:$AA$13))","v":1},"11",null,null,null,null,null,"ゴルフ",7,0,0,0,0,0,0,{"$f":"SUM(AC10:AG10)","v":0},7,1]
["北信","観光","一茶記念館","https://www.issakinenkan.com/","","上水内郡信濃町大字柏原２４３７ー２","０２６-２５５-３７４１","０２６-２５５-５５０５","入場料大人７００円小中学生３５０円","入場料 大人６００円   小中学生３００円（ただし、２０名以上の団体料金）",null,"・旬花咲く黒姫高原・黒姫童話館・野尻湖・野尻湖ナウマンゾウ博物館","・小林一茶に関する作品や遺品、遺墨を展示し、一茶の生涯を紹介している。近くには、国の史跡に指定されている一茶旧宅がある。","信濃町勤労者互助会","15.4URL・℡変更",null,null,{"$f":"IF(A11=\"\",\"\",SUMIF($X$4:$X$9,A11,$Y$4:$Y$9))","v":1},{"$f":"IF(B11=\"\",\"\",SUMIF($Z$4:$AA$13,B11,$AA$4:$AA$13))","v":2},"12",null,null,null,null,null,"レジャー",8,4,4,0,0,0,0,4,8,1]
["北信","観光","黒姫童話館","http://douwakan.com","","上水内郡信濃町大字野尻３８０７－30","０２６-２５５-２２５０","０２６-２５５-２２６１","一般７００円小・中学生４００円  童話の森ギャラリーとの共通一般１,０００円小・中学生５００円","一般６００円小・中学生３００円   童話の森ギャラリーとの共通一般９００円小・中学生４００円","《モモちゃんとアカネちゃんシリーズ》《怪談レストランシリーズ》などの作家松谷みよ子。「モモ」「ネバーエンディングストーリー」の作家ミヒャエル・エンデを中心に、信州の民話や児童文学を親しみやすく展示・紹介しています。いわさきちひろがアトリエとして使っていた黒姫の山荘を移築し公開しています。週末を中心にホールで人形劇などイベントを開催。","・黒姫高原コスモス園・野尻湖・野尻湖ナウマンゾウ博物館・一茶記念館","・童話作家松谷みよ子、ミヒャエル・エンデのことならなんでもわかる常設展示室やいわさきちひろがアトリエとして使っていた黒姫山荘があります。信濃の民話コーナーは昔話がたくさんあって楽しいですよ。信濃の民話や信州の文学コーナーもあります。","信濃町勤労者互助会","07.5通常・割引内容変更\n14.4番地訂正","2020.2　HPアドレス変更",null,1,2,"12",null,null,null,null,null,"その他",9,17,5,4,3,5,0,17,9,1]
["北信","観光","童話の森ギャラリー","http://douwakan.com","","上水内郡信濃町大字野尻３８０７-２９","０２６-２５５-６７２０","０２６-２５５-６７５０","一般４００円、小・中学生２００円。 黒姫童話館との共通一般１,０００円、小・中学生５００円","  黒姫童話館との共通一般９００円、小・中学生４００円。","郷土出身の洋画家・松木重雄氏の80号クラスの大作を展示するほか、桜井誠、大友康夫など挿絵画家の作品の展示など童話館に関する企画展を開催している。","黒姫高原コスモス園・野尻湖・野尻湖ナウマンゾウ博物館・一茶記念館","・桜井　誠の原画展など童話に関係した企画展や松木　重雄展など信濃町にゆかりのある画家の展覧会を開催しているため。","信濃町勤労者互助会","07.5通常・割引内容変更\n14.4割引料金訂正","2020.2　HPアドレス変更",null,1,2,"12",null,null,null,null,null,null,null,{"$f":"SUM(AB4:AB12)","v":64},{"$f":"SUM(AC4:AC12)","v":31},14,7,12,0,64,10,1]
["北信","観光","野尻湖ナウマンゾウ博物館","http://nojiriko-museum.com/","","上水内郡信濃町大字野尻２８７ー５","０２６-２５８-２０９０","０２６-２５８-３５５１","大人７００円 　子供３５０円","大人４５０円 　子供２６０円","４万年前のナウマンゾウの狩人をもとめて、全国の人たちが発掘しています。","黒姫高原コスモス園・野尻湖・野尻湖ナウマンゾウ博物館・一茶記念館・黒姫童話館","・野尻湖で発見されたナウマンゾウ・オオツノジカの化石を展示、実物大のレプリカもある。野尻湖人の道具や石器の展示もしている。","信濃町勤労者互助会","07.5コメント変更",null,null,1,2,"12",null,null,null,null,null,null,null,null,null,null,null,null,null,null,11,1]
["北信","観光","いいづなアップルミュージアム","http://www.town.iizuna.nagano.jp/","","上水内郡飯綱町大字倉井５番地","０２６-２５３-１０７１","０２６-２５３-４４５１","大人３００円　子供１５０円","大人２５０円　子供１００円","リンゴに関する様々な資料や情報の展示。ギァラリーでは、定期的に絵画・クラフト・写真等の展覧会を開催。館周辺に植えられたイギリス等ヨーロッパのリンゴ並木も散策できる。\nまた、幻のリンゴ、和リンゴの一種で飯綱町の「高坂林檎」を植樹しており時期により、貴重な和リンゴの花や実を見学できる。","・サンクゼールワイナリー・田山花袋文学碑・山本太郎文学碑・むれ温泉天狗の館・いいづな歴史ふれあい館","・りんごを４分の１にカットしたような外観がひときわ印象的。りんごのすべての魅力を、ゆっくりと、味わうように見学できる。","飯綱勤労者互助会","07.5割引内容変更\n14.4コメント変更\n19.3施設コメント変更",null,null,1,2,"12",null,null,null,null,null,null,null,null,null,null,null,null,null,null,12,1]
["北信","観光","高橋まゆみ人形館","https://www.ningyoukan.net",null,"飯山市飯山２９４１－１","０２６９-６７-０１３９","０２６９-６７-０１４１","入館料　大人６２０円   小中学生４１０円","ポストカードプレゼント","創作人形作家･高橋まゆみの作品を常時約１００体展示。細やかな人間観察から生み出された人形の数々は表情豊かで見る人の心を揺さぶります。ミュージアムショップとカフェを併設しています。年に２回展示替えをしています。\n","・飯山手すき和紙体験工房　･飯山市美術館　・ふるさと館　・飯山七福神寺めぐり　・伝統産業会館　・野沢温泉",null,"飯水岳北勤労者共済会","14.4新規契約\n17.4.3コメント変更\n20.2通常・割引・コメント変更",null,null,1,2,{"$f":"R16&S16","v":"12"},null,null,null,null,null,null,null,null,null,null,null,null,null,null,13,1]
["北信","観光","山ノ内町立志賀高原ロマン美術館","http://s-roman.sakura.ne.jp/index.htm","","下高井郡山ノ内町平穏1465（上林温泉）","０２６９-３３-８８５５","０２６９-３３-８８２５","入館料　大人500円   小中学生300円\n追記）休館日：木曜日※季節による変動あり","入館料　大人400円   小中学生250円\n追記）・会員証所持者含む1グループ様まで\n　　　  ・他割引との併用不可","長野冬季オリンピック及びパラリンピックの開催を記念して、1997年秋に開館しました。建物は日本を代表する建築家黒川紀章氏による設計で、地元山ノ内町出身の\n南画家、児玉果亭（1841-1913）の作品群や、ローマングラスの瓶や壺など、「美とロマン」をテーマに作品を収蔵しています。年4回、季節ごとにオリジナルの企画展を開催。\n※常設展示室はありません。\n※企画展の内容、コレクションの展示状況は公式ＨＰをご確認ください。","ギャラリー玉村本店、和合会館ギャラリー、地獄谷野猿公苑",null,"山ノ内町勤労者互助会","15.4コメント変更\n07.5コメント変更","2009.4HPｱﾄﾞﾚｽ・住所変更\n2012.3HPアドレス変更\n2018.2スポット変更",null,1,2,"12",null,null,null,null,null,null,null,null,null,null,null,null,null,null,14,1]
["北信","スキー","さかえ倶楽部スキー場","https://sakaeclub.securesite.jp",null,"下水内郡栄村北信２９０３","０２６９-８７-３３５５","０２６９-８７-２２８０","リフト１日券、大人4,500円、小人2,500円","リフト1日券を通常料金より300円の割引き","長野県の最北端に位置し、積雪量、雪質共に最高のコンディション。眺望がよく、天気がよければ信越の山々が一望できます。起伏に富んだ９本のコースは魅力満載。","・国道117号線沿いの「道の駅・信越さかえ」・中条温泉「トマトの国」・北の天満温泉・北の天満宮\n・JR森宮野原駅前日本一の積雪標柱、百合居温泉、常慶院、苗場山ろくジオパーク認定（H26.12.22）","都合をつけてたくさんの方々からのご利用を期待しています。","飯水岳北勤労者共済会","14.4新規契約\n15.4大人料金、コメント変更","2018.2ＨＰ・ＴＥＬ修正",null,1,4,"14",null,null,null,null,null,null,null,null,null,null,null,null,null,null,15,1]
["北信","スキー","いいづなリゾートスキー場","http://iizunaresort.com",{"$f":"IF(D19=\"\",\"\",\"\")","v":""},"上水内郡飯綱町川上２７５５ー２０９","０２６-２５３-３９１１","０２６-２５３-２６７８","リフト１日券    ３，５００円","１日券１，０００円割引",null,null,null,"飯綱勤労者互助会","12.4hp、料金・割引内容変更",null,null,1,4,"14",null,null,null,null,null,null,null,null,null,null,null,null,null,null,16]
["北信","スキー","戸隠スキー場","http://www.togakusi.com/",{"$f":"IF(D20=\"\",\"\",\"\")","v":""},"長野市戸隠３６８２","０２６-２５４-２１０６","０２６-２５４-３７５９","割引時料金については、施設に直接お問い合わせ下さい。\nリフト料金　1日券大人6,800円、シニア5,800円、小人4,300円","補助券1枚につき、1,000円です。","驚きの眺望と抜群の雪質。初心者から上級者まで楽しめる多彩なコースレイアウト（全１９コース）。","戸隠神社（奥社、中社、宝光社、鏡池）","・会員の相互扶助と連帯を深めるため。","（一財）長野市勤労者共済会","2009.5.14経営者変更、価格確定まで施設へ直接問い合わせとした。","2018.2　URL修正\n2019.3指定管理者\n（株）戸隠　\n連絡先：戸隠スキー場　山口様026-254-2106",null,1,4,"14",null,null,null,null,null,null,null,null,null,null,null,null,null,null,17,1]
["北信","温泉","いいやま湯滝温泉","http://www.yutakionsen.net/",null,"飯山市一山１８９８","０２６９-６５-３４５４","０２６９-６７-００６５","大人６００円、小学生３００円","大人のみ入浴料金５０円引き(本人のみ)\n※会員本人のみの割引き（割引利用カード記載の“その家族”は適用されません。）","千曲川沿いにあり、せせらぎの音を聞きながら入れる露天風呂が人気。湯上りは2階の大広間でのんびりと、飯山特産のみゆきポークなど地元食材を活かしたお食事をどうぞ。\nWi-Fi環境あり、クレジットカード対応可、JR飯山線上滝駅徒歩5分。","・なべくら高原･戸狩スキー場・野沢温泉スキー場・高橋まゆみ人形館",null,"飯水岳北勤労者共済会","15.4変更\n20.2割引・コメント変更",null,null,1,6,"16",null,null,null,null,null,null,null,null,null,null,null,null,null,null,18,1]
["北信","温泉","むれ温泉・天狗の館","http://tengunoyakata.com","","上水内郡飯綱町川上２７５５ー３４５","０２６-２５３-３７４０","０２６-２５３-３８１４","温泉施設入館料    ６００円","温泉施設入館料   「大人のみ入館料金１００円引き（本人のみ）」","ご宴会やランチセットご利用の方で天狗の館より片道30分以内であれば無料送迎いたします。（予約制、4名様～）花のスポット、りんご狩りなどご紹介いたします。","・スポーツ施設（テニスコート・グランド・マレットゴルフ・ゲートボール）オートキャンプ場・バーベキュー広場・スーパースライダー・おもしろ自転車・ボート・釣り・お子様の喜ぶ電気自転車・ゴルフ・パターゴルフ・飯綱リゾートスキー場・野尻湖・黒姫高原・戸隠。ノルディックウォーキングコースが整備されました。(3km、5km、8km)","・飯綱東高原の中心にある霊仙寺湖畔に位置。春の桜、水芭蕉、二輪草から夏季には涼を求める家族が集います。秋は紅葉、冬はスキーと一年を通し、楽しんでいただける観光スポットである。また、４月～１１月は朝採り野菜の販売がある。","飯綱勤労者互助会","07.5名称、コメント変更\n10.5URL変更、ｺﾒﾝﾄ変更","2012.4コメント変更、13.3コメント変更",null,1,6,{"$f":"R22&S22","v":"16"},null,null,null,null,null,null,null,null,null,null,null,null,null,null,19]
["北信","温泉","湯田中駅前温泉 楓の湯","https://www.info-yamanouchi.net/facilities/#section-04","","下高井郡山ノ内町大字平穏3227番地１","０２６９-３３-２１３３","０２６９-３３-2133","一般入湯料５００円(令和７年４月１日～)","入湯料50円割引　","地元だけではなく、広域にたくさんの方々に利用していただければと思います。とても格安なので。","・「湯薫亭」小林一茶の作品の展示　・「世界平和観音菩薩」合格祈願、縁結び　・「地獄谷野猿公苑」温泉に入るサル　・志賀高原の大自然、冬はスキー",null,"山ノ内町勤労者互助会","06.6.1締結\n13.3コメント追加","14.4HPｱﾄﾞﾚｽ変更\n2018.2ＦＡＸ修正",null,1,6,"16",null,null,null,null,null,null,null,null,null,null,null,null,null,null,20]
["北信","温泉","麻釜温泉公園ふるさとの湯","https://www.vill.nozawaonsen.nagano.jp/www/contents/1050000000241/index.html",{"$f":"IF(D24=\"\",\"\",\"\")","v":""},"下高井郡野沢温泉村豊郷８７３４","０２６９-８５-３７００（ふるさとの湯）\n０２６９-８５-３１１４（野沢温泉村）","０２６９-８５-３７００（ふるさとの湯）\n０２６９-８５-３８０３（野沢温泉村）","大人７００円、小人５００円(小人は３才～小学生、３才未満は無料)","大人４００円、小人２００円","麻釜温泉公園ふるさとの湯は、源泉かけ流しの公衆浴場です。\n野沢温泉村の外湯伝統の趣のある木造湯屋建築は、情緒たっぷりな温泉施設となっていて、温泉街をそぞろ歩きしながら是非訪れていただきたい温泉です。\n","「麻釜(おがま)」\n源泉の自噴する麻釜は、共同浴場「外湯」やふるさとの湯へ温泉を供給するばかりでなく、季節の山菜や野菜そして温泉たまごを茹でる「村人の台所」として人々に利用されています。また、伝統工芸品のあけび蔓を茹でる施設としても見所満載です。\n",null,"飯水岳北勤労者共済会","14.4締結\n2018.2ＨＰ・ＴＥＬ・ＦＡＸ修正",null,null,1,6,{"$f":"R24&S24","v":"16"},null,null,null,null,null,null,null,null,null,null,null,null,null,null,21]
["北信","レジャー","びっくらんど小川","https://www.vill.ogawa.nagano.jp/facilities/bigland/","","上水内郡小川村大字高府９４４７","０２６-２６９-１０１１","０２６-２６９-１０１２","大人６００円 子供３００円","大人５００円子供２００円","泳ぐ、遊ぶ、リラックスの３施設有ります。体育館、トレーニングルームも有ります。","・星と緑のロマントピア・アルプス展望広場・おやき村","・当村で人気のある施設であるから。","西山部勤労者互助会",null,null,null,1,8,"18",null,null,null,null,null,null,null,null,null,null,null,null,null,null,22,1]
["北信","レジャー","信州高山森林スポーツ公園ＹOU游ランド","http://www.vill.takayama.nagano.jp/docs/6758691.html","","上高井郡高山村大字牧７３","０２６-２４２-２２１０","０２６-２４２-２７５５","温泉プール大人６００円小人３００円 　露天風呂大人４００円 小人２００円","温泉プール　大人５００円　 小人２５０円    \n露天風呂　　大人３００円　　小人１５０円","１０１ｍスライダー、ウォーキングプール。",null,null,"高山村勤労者互助会","2018.2　URL修正\n2018.2ＨＰ修正","20.2割引変更",null,1,8,"18",null,null,null,null,null,null,null,null,null,null,null,null,null,null,23]
["北信","レジャー","なべくら高原･森の家","http://www.nabekura.net/",null,"飯山市照岡１５７１－１５","０２６９-６９-２８８８","０２６９-６９-２２８８",null,"ソフトドリンク１００円割引（ご本人のみ滞在中１回限り）","なべくら高原･森の家は、森に佇むコテージのある自然体験施設です。信州の大自然に触れられる体験を随時ご案内しています。夏はブナの森へのトレッキングやカヌー体験、冬は豪雪地ならではのスノーシューや雪遊びなど。また喫茶スペースもあり、近くの農園で収穫したハーブティーなどをお楽しみいただけます。","・信越トレイル-全長８０キロに及ぶ日本屈指のロングトレイル。６つのセクションに分かれており、体力に合わせてコースを選べます。　・茶屋池-信越トレイル、関田山脈にある池。ブナの根明け、秋の紅葉と、写真家にとっても絶好のボイント。池周辺には散策路も整備されています。　・巨木の谷-鍋倉山の中腹にあり、樹齢２００年をゆうに超えるブナの巨木が並んでいます。中でも樹齢４００年以上の「森太郎」は巨木の谷のシンボルです。",null,"飯水岳北勤労者共済会","14.4締結\n17.4.3割引内容変更\n19.3割引内容変更",null,null,1,8,{"$f":"R27&S27","v":"18"},null,null,null,null,null,null,null,null,null,null,null,null,null,null,25]
["北信","食事","地場産工房そば処よこ亭","https://www.iizuna-yokotei.com/","","上水内郡飯綱町柳里８４７－３","０２６-２５３-８２８７","０２６-２５３-８２８７","ざるそば８６０円、野菜天ざる１，３５０円、えび野菜天ざる１，７００円","通常の食事及び、そば打ち体験を１０％割引とする","飯綱町産地粉を１００％使用した石臼挽きの手打ちそば。","・飯綱東高原（テニス・グラウンド・オートキャンプ・マレットゴルフ・スーパースライダー・おもしろ自転車・ボート・釣り）飯綱リゾートスキー場・むれ温泉天狗の館","・飯綱町内の高台に位置し、志賀高原～菅平高原が一望できる。飯綱町で採れた無農薬そばの実だけを、石臼でじっくりと挽き、手打ちで仕上げる本物の信州そばを提供している。自然で無添加の食品は大変人気であり、最近は地粉を使ってのそば打ち体験の申込が殺到している。","飯綱勤労者互助会","14.4通常料金変更",null,null,1,3,"13",null,null,null,null,null,null,null,null,null,null,null,null,null,null,26,1]
["北信","レジャー","道の駅　花の駅･千曲川","http://www.chikumagawa.net/","","飯山市常盤7425","０２６９-６２-１８８７","０２６９-６２-１８８９",null,"ソフトクリーム５０円割引き(ソフトクリームはCafé里わに限る)","2023年11月に「モンベル」と「ビジターセンター」を新設しグランドオープン。\n農産物直売所とお土産コーナーでは旬の野菜や飯山のお土産、近隣市町村の特産品が勢揃い。Café里わでは、地産地消のメニューを提供。\n新設されたモンベルではアウトドア用品が手に入り、ビジターセンターではアウトドアギアのレンタルや周辺市町村の観光情報が充実しています。\n是非一度、当駅へお立ち寄りください。","・菜の花公園　・あじさい寺の高源院　・ハートの形の北竜湖　・高橋まゆみ人形館　・なべくら高原森の家・信越トレイル・いいやま湯滝温泉　・戸狩スキー場　・斑尾スキー場　・どこへ行くにもアクセス抜群です。",null,"飯水岳北勤労者共済会","14.4新規契約\n19.3割引内容変更",null,null,1,8,{"$f":"R29&S29","v":"18"},null,null,null,null,null,null,null,null,null,null,null,null,null,null,27]
["北信","その他","眼鏡市場　長野若槻店","http://www.meganetop.co.jp/",{"$f":"IF(D30=\"\",\"\",\"\")","v":""},"長野市稲田2丁目１１－１０","０２６-２５９-７３２８","０２６-２５９-７３２８",null,"メガネ・コンタクトレンズは店頭価格より５％割引。\n単品(レンズ・フレーム)、備品、補聴器は対象外。\n他の割引、セール品との併用不可。","業界唯一の製造直売価格。レンズ加工25分スピードお渡し。",null,null,"（一財）長野市勤労者共済会","06.6.1締結\n06.12.2店名変更\n07.2.14割引内容変更",null,null,{"$f":"IF(A30=\"\",\"\",SUMIF($X$4:$X$9,A30,$Y$4:$Y$9))","v":1},{"$f":"IF(B30=\"\",\"\",SUMIF($Z$4:$AA$13,B30,$AA$4:$AA$13))","v":9},{"$f":"R30&S30","v":"19"},null,null,null,null,null,null,null,null,null,null,null,null,null,null,28,1]
["北信","その他","眼鏡市場　長野南バイパス店","http://www.meganetop.co.jp/","","長野市稲里町中央４－２１－３１","０２６-２８５-５３２８","０２６-２８５-５３２８",null,"メガネ・コンタクトレンズは店頭価格より５％割引。\n単品(レンズ・フレーム)、備品、補聴器は対象外。\n他の割引、セール品との併用不可。","業界唯一の製造直売価格。レンズ加工25分スピードお渡し。",null,null,"（一財）長野市勤労者共済会","06.6.1締結\n07.2.14割引内容変更\n07.5店名変更",null,null,1,9,{"$f":"R31&S31","v":"19"},null,null,null,null,null,null,null,null,null,null,null,null,null,null,29]
["北信","その他","眼鏡市場　長野高田店","http://www.meganetop.co.jp/","","長野市高田１４５８－１","０２６-２２９-７５６８","０２６-２２９-７５６８",null,"メガネ・コンタクトレンズは店頭価格より５％割引。\n単品(レンズ・フレーム)、備品、補聴器は対象外。\n他の割引、セール品との併用不可。","業界唯一の製造直売価格。レンズ加工25分スピードお渡し。",null,null,"（一財）長野市勤労者共済会","07.2.14割引内容変更\n07.5店名変更",null,null,1,9,{"$f":"R32&S32","v":"19"},null,null,null,null,null,null,null,null,null,null,null,null,null,null,30,1]
["北信","その他","眼鏡市場　中野店","http://www.meganetop.co.jp/","","中野市吉田１３－１","０２６９-２２-３１１８","０２６９-２２-３１１８",null,"メガネ・コンタクトレンズは店頭価格より５％割引。\n単品(レンズ・フレーム)、備品、補聴器は対象外。\n他の割引、セール品との併用不可。","業界唯一の製造直売価格。レンズ加工25分スピードお渡し。",null,null,"（一財）長野市勤労者共済会","06.6.1締結\n07.2.14割引内容変更\n07.5店名変更",null,null,1,9,"19",null,null,null,null,null,null,null,null,null,null,null,null,null,null,31,1]
["北信","その他","眼鏡市場　更埴店","http://www.meganetop.co.jp/","","千曲市大字桜堂３８１－１","０２６-２７４-４６８８","０２６-２７４-４６８８",null,"メガネ・コンタクトレンズは店頭価格より５％割引。\n単品(レンズ・フレーム)、備品、補聴器は対象外。\n他の割引、セール品との併用不可。","業界唯一の製造直売価格。レンズ加工25分スピードお渡し。",null,null,"（一財）長野市勤労者共済会","06.6.1締結\n06.12.2店名変更\n07.2.14割引内容変更",null,null,1,9,"19",null,null,null,null,null,null,null,null,null,null,null,null,null,null,32]
["東信","宿泊","信州佐久　春日温泉　自然体感リゾート　かすがの森","http://www.kasuganomori.com/",{"$f":"IF(D35=\"\",\"\",\"\")","v":""},"長野県佐久市春日２２５８ー１","０２６７-５２-２１１１","０２６７-５２-２１１９","営業期間：２０２６年５月１日～２０２６年８月３１日\n９，４００円～     ２９，０００円","８，８００円～    ２７，５００円   （６００円～１，５００円引き）","アルカリ質の温泉で肌がスベスベし、美人の湯といわれています。温泉プール、体育館、研修室有ります。","・春日温泉内(望月町馬事公苑・クラブハウス・じりの木広場・源泉公園）・望月牧場・春日渓谷・大河原峠・蓼科山","・温泉プール、体育館、テニスコート、ゲートボールコート５面等のスポーツ施設、バーベキュー施設、温泉がありリゾートライフを満喫できるため。","小諸・北佐久勤労者互助会","１４．４名称、URLﾍﾝｺｳ",null,null,2,1,"21",null,null,null,null,null,null,null,null,null,null,null,null,null,null,33]
["東信","宿泊","常盤館","http://www.tokiwakan.com/","","小諸市大字菱平７６２番地２","０２６７-２２-０５１６","０２６７-２３-５６４８","１室４名利用(税込み):平日１６，７４０円～\n１室２名利用(税込み)：平日１９，７１０円～","お酒又はソフトドリンク１本サービス","登山電車で行く絶景露天風呂の宿\n2024/8上旬露天風呂デッキリニューアルしました。雲上の停車場","・高峰高原・浅間連峰・池の平湿原・懐古園・小諸高原美術館・マンズワイン・布引観音","・館内登山電車で行く露天風呂「雲の助」では蓼科、八ヶ岳、佐久平を一望しながら、温泉に入れます。","小諸・北佐久勤労者互助会","07.5通常料金変更\n12.5割引内容変更\n14.3通常料金変更","2018.2割引・ポイント・スポット変更",null,2,1,"21",null,null,null,null,null,null,null,null,null,null,null,null,null,null,34]
["東信","宿泊","天狗温泉浅間山荘","http://www.tenguspa.com/","","小諸市野馬取４７６６番地","０２６７-２２-０９５９","０２６７-２５-２２５５","１泊２食付１７，０００円税別～２名様以上で利用の場合\n","１泊２食付１６，０００円税別（年末年始・ＧＷ・８/10～15・10月・通年で祝、休日の前日除く）","季節の山菜料理と手打ちそば。赤褐色の鉄鉱泉はポカポカで効能豊かです。コテージなどの施設もあります。ご家族、グループでもご利用ください。","・火山館・湯の平高原・浅間山外輪山・高峰高原・池の平湿原・懐古園・浅間山登山口・軽井沢アウトレット","・浅間連峰湯の平コースの登山口となっていて、四季折々の自然が楽しめる。鉄鉱泉があり、乗馬体験ができます。  ","小諸・北佐久勤労者互助会","14.4通常料金変更\n20.2通常料金・割引変更",null,null,2,1,"21",null,null,null,null,null,null,null,null,null,null,null,null,null,null,35,1]
["東信","宿泊","布下温泉きじま荘","http://www.kijimasou.com/",{"$f":"IF(D38=\"\",\"\",\"\")","v":""},"東御市大字布下８１","０２６８-６７-３４０９","０２６８-７１-０３８８","１泊２食８,７００円(税別)    入湯税　大人１５０円\n12/31～1/3休業","１泊２食８,２００円(税別)   入湯税　大人１５０円\n12/31～1/3休業            ",null,"・湯の丸高原芸術むら公園・温泉アクティブセンター・布引観音・懐古園・海野宿","・温泉の泉質はナトリウム塩化物泉で、肌に優しく、痛みを和らげる効能がある。佐久鯉、川魚、季節の山菜、地元産豆腐、自家製野菜、米を使った手作り料理が楽しめます。","東御市勤労者互助会","10.5名称：木島⇒きじまへ\n14.4通常･割引料金変更",null,null,2,1,{"$f":"R38&S38","v":"21"},null,null,null,null,null,null,null,null,null,null,null,null,null,null,36]
["東信","観光","池波正太郎真田太平記館","https://www.city.ueda.nagano.jp/site/ikenami",{"$f":"IF(D39=\"\",\"\",\"\")","v":""},"上田市中央三丁目７番３号","０２６８-２８-７１００","０２６８-２８-７１０１","一般４００円    高・大 学生２６０円   小・中学生１３０円　","一般３３０円 高・大学生２００円 小・中学生１００円　","直木賞作家　池波正太郎の著書『真田太平記』を紹介する文学館。池波氏の遺愛品・取材ノート・自筆原稿などを常設展示している。","・上田城跡公園・上田市立博物館・風情漂う柳町",null,"上田勤労者互助会","12.4HP観光スポットコメント変更","14.4通常･割引区分変更。コメント変更。17.4.3割引標記変更",null,2,2,"22",null,null,null,null,null,null,null,null,null,null,null,null,null,null,38,1]
["東信","観光","真田氏歴史館","https://www.city.ueda.nagano.jp/soshiki/ssangyo/2758.html",{"$f":"IF(D40=\"\",\"\",\"\")","v":""},"上田市真田町本原2984番地1","0268-72-4330","0268-72-4140","一般250円　\n高校生以上の生徒・学生160円　\n小中学校の生徒児童100円","一般200円　\n高校生以上の生徒・学生120円　\n小中学校の生徒児童80円","当館は、武家屋敷を偲ばせる木造平屋建てで、館内には、武田二十四将として活躍した真田幸隆をはじめとする真田一族の歴史を、古文書や武具等を展示して紹介しています。年代に沿って配置しているため、真田氏の活躍の様子をわかりやすく理解することができます。","・御屋敷公園（真田氏館跡）\n・ゆきむら夢工房\n・真田氏本城跡\n・長谷寺\n・山家神社\n・信綱寺\n・真田氏記念公園",null,"上田勤労者互助会",null,null,null,{"$f":"IF(A40=\"\",\"\",SUMIF($X$4:$X$9,A40,$Y$4:$Y$9))","v":2},{"$f":"IF(B40=\"\",\"\",SUMIF($Z$4:$AA$13,B40,$AA$4:$AA$13))","v":2},{"$f":"R40&S40","v":"22"},null,null,null,null,null,null,null,null,null,null,null,null,null,null,39,1]
["東信","スキー","八千穂高原スキー場","https://yachiho-kogen.com/ski/",{"$f":"IF(D41=\"\",\"\",\"\")","v":""},"南佐久郡佐久穂町大字千代里2093","０２６７-８８-３８６６","０２６７-８８-３９６９","リフト料金　2025年～2026年料金（2026年～2027年は変更あり）\n(土・日・祝)大人4,800円高校生・ミドル(50歳以上）3,800円\n(平日)大人4,300円高校生・ミドル(50歳以上）3,300円\n小中学生はシーズン中いつでも2,000円。\n未修学児はシーズン中いつでも1,000円。","リフト１日券／通常料金から1,000円割引：大人・高校生・ミドル(50歳以上）のみ\nレンタル滑走用具／１日セット５００円割引　 ","標高1,830ｍの一度味わったらやめられない絶品パウダースノー！\nコンパクトながら８つの個性的なゲレンデと多彩なアトラクションで１日中楽しめます。",null,"・北八ヶ岳の大自然の中にあり、上質なパウダースノーが自慢のスキー場。パークやコブ、地型遊びやプチツリーランなど上級者からファミリーで楽しめます。また、センターハウスに全てのコースが合流するレイアウトや子供専用のゲレンデとクラブハウスやキッズランドがあるなどファミリーにも優しいスキー場です。","南佐久勤労者互助会","07.5URL変更\n09.11.17割引内容変更\n12.4レンタル料金割引廃止　13.3全面的に修正","20.2HPアドレス・通常料金・割引・コメント変更",null,2,4,"24",null,null,null,null,null,null,null,null,null,null,null,null,null,null,40,1]
["東信","キャンプ","駒出池キャンプ場","https://yachiho-kogen.com/camp","","南佐久郡佐久穂町大字八郡2049-858","０２６７-８８-２５６９","０２６７-８８-４１１０","施設利用料\nフリーサイト：3,000円～　ソロキャンプ2,200円～　オートサイト：3,300円～　コテージ：21,000円～　バンガロー：13,000円～　グループキャンプサイト：21,000円～　手ぶらプラン：18,000円～\n※ご利用時期により変動致します。","延長料金５００円引き","駒出池のほとり、白樺林に囲まれた美しく雄大なロケーションの中、ファミリーで楽しい１日をお過ごし下さい。","・奥村土牛記念美術館・八千穂高原（自然園・花木園）・白駒の池・八千穂レイク","・北八ヶ岳特有の表情豊かな植生に恵まれた八千穂高原にあるキャンプ場。バンガロー・コテージ・テント・オートキャンプとお好みのスタイルで楽しめる。","南佐久勤労者互助会","07.5URL変更\n10.5ｺﾒﾝﾄ変更\n13.3全面的に修正","20.2HPアドレス・通常料金・コメント変更",null,2,5,"25",null,null,null,null,null,null,null,null,null,null,null,null,null,null,41,1]
["東信","温泉","びんぐし湯さん館　","http://www.yusankan.co.jp/",{"$f":"IF(D43=\"\",\"\",\"\")","v":""},"埴科郡坂城町大字網掛２００２番地ー４","０２６８-８１-７０００","０２６８-８１-７００１","大　　　人　　６５０円\n小学生以下　３３０円","大人(中学生以上)入館料から50円引き\n小学生(未就学児無料)入館料から30円引き\n※２０：００以降は利用不可、他の割引との併用不可\n※優待対象　同伴家族\n","豊富な湯と絶景露天風呂が人気。眼下に千曲川の流れる眺望のよい露天風呂が好評の日帰り温泉で、豊富な湯量を誇る良質の湯は無色透明の単純硫黄泉で飲泉も可能。周囲に広がる山々を望む開放感ある岩風呂、寝湯、サウナ、内風呂など多彩なお風呂がそろっています。","・湯さん館のふもとには、びんぐし公園　・千曲川さかきバラ公園　・鉄の展示館(日本刀剣)","　","(一財)更埴地域勤労者共済会","2012.6新規登録\n2009.4、2006年移転・削除(めん茶房つたや)","19.3　割引内容・施設内容変更\n19.10より通常料金・割引料金変更（9/5電話連絡有り）\n20.2コメント変更",null,2,6,{"$f":"R43&S43","v":"26"},null,null,null,null,null,null,null,null,null,null,null,null,null,null,42,1]
["東信","その他","眼鏡市場　佐久インター店","http://www.meganetop.co.jp/","","佐久市大字岩村田３６３１－１","０２６７-６８-０７３８","０２６７-６８-０７３８",null,"メガネ・コンタクトレンズは店頭価格より５％割引。\n単品(レンズ・フレーム)、備品、補聴器は対象外。\n他の割引、セール品との併用不可。","業界唯一の製造直売価格。レンズ加工25分スピードお渡し。",null,null,"（一財）長野市勤労者共済会","06.6.1締結\n07.2.14割引内容変更\n07.5店名変更",null,null,2,9,"29",null,null,null,null,null,null,null,null,null,null,null,null,null,null,43]
["東信","その他","眼鏡市場　佐久平店","http://www.meganetop.co.jp/","","佐久市佐久平駅南１９－６","０２６７-６６-３４２８","０２６７-６６-３４２８",null,"メガネ・コンタクトレンズは店頭価格より５％割引。\n単品(レンズ・フレーム)、備品、補聴器は対象外。\n他の割引、セール品との併用不可。","業界唯一の製造直売価格。レンズ加工25分スピードお渡し。",null,null,"（一財）長野市勤労者共済会","06.6.1締結\n06.12.2店名変更\n07.2.14割引内容変更",null,null,2,9,"29",null,null,null,null,null,null,null,null,null,null,null,null,null,null,44,1]
["東信","その他","眼鏡市場　上田店","http://www.meganetop.co.jp/","","上田市神畑５１５　グリーンパークしおだ野","０２６８-２９-５９５８","０２６８-２９-５９５８",null,"メガネ・コンタクトレンズは店頭価格より５％割引。\n単品(レンズ・フレーム)、備品、補聴器は対象外。\n他の割引、セール品との併用不可。","業界唯一の製造直売価格。レンズ加工25分スピードお渡し。",null,null,"（一財）長野市勤労者共済会","06.6.1締結\n06.12.2店名変更\n07.2.14割引内容変更",null,null,2,9,"29",null,null,null,null,null,null,null,null,null,null,null,null,null,null,45,1]
["東信","その他","眼鏡市場　上田産業道路店","http://www.meganetop.co.jp/",null,"上田市常入1-1-65 　栄ビル1F","０２６８-２９-７２９８","０２６８-２９-７２９８",null,"メガネ・コンタクトレンズは店頭価格より５％割引。\n単品(レンズ・フレーム)、備品、補聴器は対象外。\n他の割引、セール品との併用不可。","業界唯一の製造直売価格。レンズ加工25分スピードお渡し。",null,null,"（一財）長野市勤労者共済会","07.8.9新店",null,null,2,9,{"$f":"R47&S47","v":"29"},null,null,null,null,null,null,null,null,null,null,null,null,null,null,46,1]
["中信","宿泊","ねざめホテル","https://nezame-hotel.com/","","木曽郡上松町大字上松１８８８番地１","０２６４-５２-２２４５","０２６４-５２-２４４８","本館　宿泊料金　大人13,100円　小学生11,100円\n別館　宿泊料金　大人13,100円　小学生11,100円\n・本館は和室８畳１泊２食付きの料金です。\n・別館は洋室ツインルーム１泊２食付きの料金です。\n・年末年始・旧盆・ゴールデンウイークは通常の3,000円増。・休日前は1,000円増。","料金は全て税別となります。","木曽路の中心で国道１９号線沿いでアクセスが良い。名所の寝覚ノ床まで徒歩３分。","・寝覚の床・小野の滝・赤沢自然休養林・木曽駒ヶ岳・御嶽山・奈良井宿・妻籠宿・馬籠宿","・国民宿舎協会に加盟している宿で安心して宿泊できる。","木曽勤労者共済会","10.5URL設定\n10.5別紙②変更\n12.4別紙②変更","2015.4別紙変更\n2018.2住所訂正\n2019.3通常料金変更別紙②変更",null,3,1,"31",null,null,null,null,null,null,null,null,null,null,null,null,null,null,47]
["中信","宿泊","西条温泉とくら","http://www.tokura1000yu.com/","","東筑摩郡筑北村西条３４４３","０２６３-６６-２１１４","０２６３-６６-２３０１","一般料金まつかぜ￥１３，１５０、とくら￥１４，７５０\n※1泊2食付（サービス料・消費税・入湯税込）\n※月・水・木・金・日曜日の宿泊のみ対象（年末年始・GW・お盆を除く）\n※会員本人のみ割引（但し1室２～４名の利用）　※毎週火曜日休館\n※毎週火曜日休館","まつかぜ￥１１，８５０、とくら￥１２，７５０\n※1泊2食付（サービス料・消費税・入湯税込）\n※月・水・木・金・日曜日の宿泊のみ対象（年末年始・GW・お盆を除く）\n※会員本人のみ割引（但し1室２～４名の利用）　\n※毎週火曜日休館","とくら千年の湯と言われ、東山道の旅人をも魅了した温泉と会席料理(和食)が自慢です。","とくら沢ふれあい広場、とくらダム、善光寺街道の立峠石畳の道、乱橋宿、物種太郎の塚、河鹿沢から望む北アルプスの絶景",null,"筑北勤労者互助会","06.6.1締結\n15.4コメント変更\n20.2通常料金変更",null,null,3,1,"31",null,null,null,null,null,null,null,null,null,null,null,null,null,null,48]
["中信","観光","ミュージアム鉱研、地球の宝石箱","http://www.koken-boring.co.jp/jwlbox/index.html","","塩尻市北小野４６６８","０２６３-５１-８１１１","０２６３-５１-８１１３","入場料大人７００円   高・大学生５００円　小・中学生４00円　但し保護者同伴の小中学生、及び幼児は無料。","入場料それぞれ半額","１２月１日～翌３月３１日まで冬季閉館となります。","小坂田わくわく園は、改修されサッカー場などになっています。チロルの森公園は閉園になってしまいました。","・いこいの森公園内にあり、世界の珍しい岩石や化石を展示し宝石の加工体験ができる。とんぼの池や蝶の丘、バーベキュースポット、楽しく遊べる遊具があります。","（一財）塩尻筑南勤労者福祉サービスセンター","12.4HP変更\n15.4観光スポット追加\n2018.2ＨＰ修正",null,null,3,2,"32",null,null,null,null,null,null,null,null,null,null,null,null,null,null,49,1]
["中信","その他","眼鏡市場　南松本店","http://www.meganetop.co.jp/",{"$f":"IF(D51=\"\",\"\",\"\")","v":""},"松本市出川２－２１－１","０２６３-２７-８６０８","０２６３-２７-８６０８",null,"メガネ・コンタクトレンズは店頭価格より５％割引。\n単品(レンズ・フレーム)、備品、補聴器は対象外。\n他の割引、セール品との併用不可。","業界唯一の製造直売価格。レンズ加工25分スピードお渡し。",null,null,"（一財）長野市勤労者共済会","06.6.1締結","07.2.14割引内容変更、07.5店名変更",null,3,9,"39",null,null,null,null,null,null,null,null,null,null,null,null,null,null,50]
["中信","その他","眼鏡市場　穂高店","http://www.meganetop.co.jp/","","安曇野市穂高２５１５－１","０２６３-８２-２７３８","０２６３-８２-２７３８",null,"メガネ・コンタクトレンズは店頭価格より５％割引。\n単品(レンズ・フレーム)、備品、補聴器は対象外。\n他の割引、セール品との併用不可。","業界唯一の製造直売価格。レンズ加工25分スピードお渡し。",null,null,"（一財）長野市勤労者共済会","06.6.1締結","06.12.2店名変更、07.2.14割引内容変更",null,3,9,{"$f":"R52&S52","v":"39"},null,null,null,null,null,null,null,null,null,null,null,null,null,null,51]
["南信","宿泊","浪漫の館　月下美人","http://gekkabijin.co.jp/","","下伊那郡下條村睦沢４２８６ー１","０２６０-２７-１００８","０２６０-２７-１００７","１泊２食付税込み１５，４００円～（季節・人数により異なります）","１，０００円引させていただきます","ツルツルの泉質で、開放感のある露天風呂と清潔感あふれる大浴場、地元の食材を生かした和洋折衷の会席料理が自慢です。真心こめた接待でお迎えいたします。","・天竜川下り（船下り、ライン下り）・伊那谷道中・水引工芸館・各種果物狩り、そばの城、桜など","・全てバリアフリー・大浴場と露天風呂あり・四季折々、地元の食材を生かした料理が魅力、また夜会後にはロビーにおいてミニコンサート、野外では満天の星の説明会等、おもてなし満点です。","（一財）飯田勤労者共済会","10.5URL変更\n13.3通常料金等変更\n15.4コメント変更",null,null,{"$f":"IF(A53=\"\",\"\",SUMIF($X$4:$X$9,A53,$Y$4:$Y$9))","v":4},{"$f":"IF(B53=\"\",\"\",SUMIF($Z$4:$AA$13,B53,$AA$4:$AA$13))","v":1},"41",null,null,null,null,null,null,null,null,null,null,null,null,null,null,52]
["南信","宿泊","高遠さくらホテル","http://www.ina-city-kankou.co.jp","","伊那市高遠町勝間２１７番地","０２６５-９４-２２００","０２６５-９４-３１２３",null,"日帰り入浴１００円引き（大人８００円→７００円）",null,"・高遠城址公園・史跡等散策・北沢峠、仙丈ヶ岳登山・駒ヶ岳登山 ・ゼロ磁場の分岐峠、ジオパークの出発点として。","・豊かな自然に恵まれ、良質で評判のよい温泉(強アルカリ性単純泉)を備えた静かな湖畔の宿。・日帰り入浴も好評。","伊那市勤労者互助会","07.5通常、割引料金変更\n09.4HP･割引料金変更\n12.4推薦理由変更","14.3通常・割引料金変更\n19.3　割引内容変更","20.2通常料金変更",4,1,"41",null,null,null,null,null,null,null,null,null,null,null,null,null,null,53,1]
["南信","宿泊","たつのパークホテル","http://www.tatsunopark.com","","上伊那郡辰野町樋口２３９６ー２０","０２６６-４１-２００１","０２６６-４１-５３２８","１泊２食付　１０，６００円(税込み)～","通年１０％引（但し、連休・お盆・年末年始は除く）","お肌つるつるの天然温泉でリラックスタイム。公園内にスポーツ施設も充実。リフレッシュにご利用ください。","・荒神山公園施設、松尾峡・しだれ栗森林公園・横川渓谷","・外観は欧風ホテル。温泉大浴場、露天風呂など良質の天然温泉。荒神山公園内に体育館、野球場、、屋内ドーム型運動場、武道館、テニスコートなどスポーツ施設が充実。伊北ＩＣから１０分と交通も便利。","辰野町勤労者互助会","10.5URL変更\n09.4通常料金変更\n12.4コメント加筆・変更","14.4通常料金、URL変更\n20.2通常料金変更",null,4,1,"41",null,null,null,null,null,null,null,null,null,null,null,null,null,null,54]
["南信","宿泊","ながた荘","https://e-minowa.co.jp/pages/58/","","上伊那郡箕輪町大字中箕輪３７３３","０２６５-７９-２６８２","０２６５-７９-０３３８","通常料金１泊２食付１５，５００円～(税込　１部屋２名様利用の場合)","１泊２食付 １５，５００円～  (税込　１部屋２名様利用の場合)　部屋タイプにより料金が異なります。宴会コースは別料金設定となります、ご相談ください。休前日、繁忙期は契約料金の対象外となります 。  ","チェックイン１５：００　チェックアウト１０：００　休館日第２．４火曜日","・みのわ温泉ながたの湯・ながた自然公園・箕輪ダムもみじ湖・信州伊那梅苑・信州伊那高原赤そばの里・美空ひばり歌の里・萱野高原","・中央アルプス桑沢山のふところ、静かな赤松林のなかにあります。みのわ温泉（ナトリウム炭酸水素塩温泉）を引湯しており、つるつるとした肌触りは美人美肌の湯として人気。","箕輪町勤労者互助会","10.5URL変更\n18.2ＨＰ修正・割引変更\n19.3観光スポット変更","20.2通常料金・割引・コメント変更",null,4,1,"41",null,null,null,null,null,null,null,null,null,null,null,null,null,null,55,1]
["南信","宿泊","望岳荘","http://www.bougakusou.com/","","上伊那郡中川村大草４４８９","０２６５-８８-２０３３","０２６５-８８-３３３５",null,"1泊2日2食付ご利用の場合、夕食時にお酒（日本酒）又はジュース1本サービス","①ハチ博物館を併せ持った施設　②高台に建つ閑静で見晴らしのよい宿","陣馬形山、小渋湖、西原ぶどう園、アクアロマン（いちご狩り）、中央アルプス千畳敷、光前寺、アンフォルメル美術館、駒ヶ根高原美術館、マルスウィスキー、元善光寺",null,"中川村勤労者互助会","06.6.1締結\n12.4施設からひと言変更\n18.2ＨＰ修正",null,null,4,1,"41",null,null,null,null,null,null,null,null,null,null,null,null,null,null,56]
["南信","キャンプ","ＡＣＮ信州伊那谷キャンパーズヴィレッジ","http://www.odp.jp/","","上伊那郡中川村大草７８３３","０２６５-８８-２６９５","なし","キャンプサイト１区画１泊１，０００円～キャビン５，０００円～\n車１台/泊１０００円\n施設使用料大人１０００円／人／泊　小人２００円（小学生～高校生）未就学児無料","サイト使用料1０％ＯＦＦ　キャビン利用料５００円ＯＦＦ","自然学校を併設していて、自然体験プログロムをたくさん用意しています。オンライン予約可能です。(24H OK)","・陣馬形山・ハチ博物館・陶芸体験・そば打ち体験","・人里離れた自然の中、広大なキャンプ場。キャンプサイトはキャンパー同士が干渉を受けないように作られています。水場・ランドリー・露天風呂・大型温水シャワー等の設備も完備。マウンテンバイク教室、子供対象の「自然学校」も行なっています。","中川村勤労者互助会","12.4HP、施設からひと言変更\n18.2通常料金・割引変更",null,null,4,5,"45",null,null,null,null,null,null,null,null,null,null,null,null,null,null,57]
["南信","その他","眼鏡市場　諏訪店","http://www.meganetop.co.jp/","","諏訪市四賀２２４２－４","０２６６-５４-５２８８","０２６６-５４-５２８８",null,"メガネ・コンタクトレンズは店頭価格より５％割引。\n単品(レンズ・フレーム)、備品、補聴器は対象外。\n他の割引、セール品との併用不可。","業界唯一の製造直売価格。レンズ加工25分スピードお渡し。",null,null,"（一財）長野市勤労者共済会","06.6.1締結\n06.12.2店名変更\n07.2.14割引内容変更",null,null,4,9,"49",null,null,null,null,null,null,null,null,null,null,null,null,null,null,58,1]
["南信","その他","眼鏡市場　岡谷店","http://www.meganetop.co.jp/","","岡谷市長地権現町1-7-37","０２６６－２６－００１８","０２６６－２６－００１８",null,"メガネ・コンタクトレンズは店頭価格より５％割引。\n単品(レンズ・フレーム)、備品、補聴器は対象外。\n他の割引、セール品との併用不可。","業界唯一の製造直売価格。レンズ加工25分スピードお渡し。",null,null,"（一財）長野市勤労者共済会","10.5追加",null,null,4,9,{"$f":"R60&S60","v":"49"},null,null,null,null,null,null,null,null,null,null,null,null,null,null,59,1]
["南信","その他","眼鏡市場　伊那店","http://www.meganetop.co.jp/","","伊那市大字伊那部字上新田２６６４－１","０２６５-７４-２５８８","０２６５-７４-２５８８",null,"メガネ・コンタクトレンズは店頭価格より５％割引。\n単品(レンズ・フレーム)、備品、補聴器は対象外。\n他の割引、セール品との併用不可。","業界唯一の製造直売価格。レンズ加工25分スピードお渡し。",null,null,"（一財）長野市勤労者共済会","06.6.1締結\n06.12.2店名変更\n07.2.14割引内容変更",null,null,4,9,{"$f":"R61&S61","v":"49"},null,null,null,null,null,null,null,null,null,null,null,null,null,null,61,1]
["南信","その他","眼鏡市場　飯田アップルロード店","http://www.meganetop.co.jp/","","飯田市鼎名古熊577-4","０２５－５６－４３３８","０２６５－５６－４３３８",null,"メガネ・コンタクトレンズは店頭価格より５％割引。\n単品(レンズ・フレーム)、備品、補聴器は対象外。\n他の割引、セール品との併用不可。","業界唯一の製造直売価格。レンズ加工25分スピードお渡し。",null,null,"（一財）長野市勤労者共済会","06.6.1締結\n10.5追加",null,null,4,9,{"$f":"R62&S62","v":"49"},null,null,null,null,null,null,null,null,null,null,null,null,null,null,62,1]
["南信","宿泊","【ホテル】駒ヶ根高原リゾートリンクス","http://www.komagane-linx.co.jp/",{"$f":"IF(D63=\"\",\"\",\"\")","v":""},"長野県駒ヶ根市赤穂5番1086","0265－82－8511","０2６5－8２－8522",null,"宿泊時大人お一人につき「館内クーポン５００円」をプレゼント。※申込み時に「勤労者互助会･共済会の特典を利用したい」とお伝えください。特典はｲﾝﾀｰﾈｯﾄの旅行サイトに掲載しているプランは除きます。料金は通常料金17,600～※曜日・季節により変更有り。","①アクセスが抜群に良い。②ホテル周辺のロケーションが良い。③お料理がおいしい。　中央自動車道駒ヶ根インターより3分、山道を走ることなく本格的なリゾートエリアへ行くことができます。ホテルは中央アルプスの麓にあり、森林浴とアルプスの絶景も見ながら過ごす散策も気持ち良いものです。ホテルの夕食は食べ放題のバイキング料理を基本としており、フレンチ料理のシェフがそのほとんどの料理を手づくりしています。中でも「ライブキッチン」として目の前の鉄板で焼く特選牛の厚切りステーキと、ホテルオリジナルの高級ブランド豚「あっぷる豚」の岩塩焼きはお客様の人気ランキング1・2位となっています。","中央アルプス千畳敷は、ホテルの目の前にバス亭があり便利で、ホテルに自家用車を預けて行く事も可能です。その他周辺の自然の中で過ごすこともお勧め。「かんてんパパ」「養命酒」「北川製菓」など、工場見学も楽しめます。早太郎伝説の名称「光前寺」や季節によってはプルーンや桃・りんご狩りなどフルーツ狩りや野菜収穫など体験施設も沢山あります。",null,"駒ケ根市勤労者互助会","18.2ＨＰ・ＴＥＬ・ＦＡＸ修正",null,null,4,1,{"$f":"R63&S63","v":"41"},null,null,null,null,null,null,null,null,null,null,null,null,null,null,63,1]
["南信","その他","眼鏡市場　伊那箕輪店","http://www.meganetop.co.jp/","","上伊那郡箕郷町大字三日町曾根田915-3","0265-71-3310","0265-71-3310",null,"メガネ・コンタクトレンズは店頭価格より５％割引。\n単品(レンズ・フレーム)、備品、補聴器は対象外。\n他の割引、セール品との併用不可。","業界唯一の製造直売価格。レンズ加工25分スピードお渡し。",null,null,"（一財）長野市勤労者共済会","19.3新規",null,null,{"$f":"IF(A64=\"\",\"\",SUMIF($X$4:$X$9,A64,$Y$4:$Y$9))","v":4},{"$f":"IF(B64=\"\",\"\",SUMIF($Z$4:$AA$13,B64,$AA$4:$AA$13))","v":9},{"$f":"R64&S64","v":"49"},null,null,null,null,null,null,null,null,null,null,null,null,null,null,64,1]
["東信","観光","上田市武石ともしび博物館","https://www.city.ueda.nagano.jp/tkyoiku/tanoshimu/hakubutsukan/tomoshibi/index.html",{"$f":"IF(D65=\"\",\"\",\"\")","v":""},"〒386-0503\n上田市下武石1902-4","0268-85-2474","0268-85-2495","一般400円　\n小中学生200円\n団体一般300円　(20人以上)\n団体小中学生150円　(20人以上)","一般200円　\n小中学生100円\n\n","旧武石村の村制施行百周年を記念して、平成元年11月3日に開園。\n「人々の生活の中に生き続けてきたともしび」について体験と学習の場を提供するあかりの博物館です。\n","武石温泉うつくしの湯、武石森林公園マレットゴルフ場、雲渓荘、巣栗渓谷、番所ヶ原スキー場、練馬区立少年自然の家ベルデ武石、美ヶ原高原",null,"上田勤労者互助会","19.4新規",null,null,{"$f":"IF(A65=\"\",\"\",SUMIF($X$4:$X$9,A65,$Y$4:$Y$9))","v":2},{"$f":"IF(B65=\"\",\"\",SUMIF($Z$4:$AA$13,B65,$AA$4:$AA$13))","v":2},{"$f":"R65&S65","v":"22"},null,null,null,null,null,null,null,null,null,null,null,null,null,null,65]
["中信","スキー","爺ガ岳スキー場","https://jiigatake.com","","〒398-0001\n大町市平4819","0261-22-0551","0261-22-4811","シーズンによって異なりますので施設までお問い合わせください。　\n","リフト1日券を通常料金より割引き","白馬エリア最南端に位置する。ゲレンデの大部分が中緩斜面のファミリー、スノーデビューされる方に最適なスキー場。キッズパークには小さなお子様でも乗れるトロイカもあり、全世代でお楽しみいただけます。","仁科三湖（木崎湖・中綱湖・青木湖）\n国営アルプスあづみの公園\n立山黒部アルペンルート",null,"大北勤労者互助会","26.4新規",null,null,{"$f":"IF(A66=\"\",\"\",SUMIF($X$4:$X$9,A66,$Y$4:$Y$9))","v":3},{"$f":"IF(B66=\"\",\"\",SUMIF($Z$4:$AA$13,B66,$AA$4:$AA$13))","v":4},{"$f":"R66&S66","v":"34"},null,null,null,null,null,null,null,null,null,null,null,null,null,null,67]
["中信","その他","眼鏡市場　塩尻北インター店","http://www.meganetop.co.jp/","","塩尻市広丘吉田333-1","０２６３-８６-２０１８","０２６３-８６-２０１８",null,"メガネ・コンタクトレンズは店頭価格より５％割引。\n単品(レンズ・フレーム)、備品、補聴器は対象外。\n他の割引、セール品との併用不可。","業界唯一の製造直売価格。レンズ加工25分スピードお渡し。",null,null,"（一財）長野市勤労者共済会","26.3新規",null,null,{"$f":"IF(A67=\"\",\"\",SUMIF($X$4:$X$9,A67,$Y$4:$Y$9))","v":3},{"$f":"IF(B67=\"\",\"\",SUMIF($Z$4:$AA$13,B67,$AA$4:$AA$13))","v":9},{"$f":"R67&S67","v":"39"}]
[null,null,null,null,"",null,null,null,null,null,null,null,null,null,null,null,null,{"$f":"IF(A68=\"\",\"\",SUMIF($X$4:$X$9,A68,$Y$4:$Y$9))","v":""},{"$f":"IF(B68=\"\",\"\",SUMIF($Z$4:$AA$13,B68,$AA$4:$AA$13))","v":""},"",null,null,null,null,null,null,null,null,null,null,null,null,null,null,69,1]
[null,null,null,null,{"$f":"IF(D69=\"\",\"\",\"\")","v":""},null,null,null,null,null,null,null,null,null,null,null,null,"","",{"$f":"R69&S69","v":""},null,null,null,null,null,null,null,null,null,null,null,null,null,null,70,1]
[null,null,null,null,"",null,null,null,null,null,null,null,null,null,null,null,null,"","","",null,null,null,null,null,null,null,null,null,null,null,null,null,null,71,1]
[null,null,null,null,"",null,null,null,null,null,null,null,null,null,null,null,null,"","","",null,null,null,null,null,null,null,null,null,null,null,null,null,null,75,1]
[null,null,null,null,"",null,null,null,null,null,null,null,null,null,null,null,null,"","","",null,null,null,null,null,null,null,null,null,null,null,null,null,null,83]
[null,null,null,null,"",null,null,null,null,null,null,null,null,null,null,null,null,"","","",null,null,null,null,null,null,null,null,null,null,null,null,null,null,84]
[null,null,null,null,"",null,null,null,null,null,null,null,null,null,null,null,null,"","","",null,null,null,null,null,null,null,null,null,null,null,null,null,null,85,1]
[null,null,null,null,"",null,null,null,null,null,null,null,null,null,null,null,null,"","","",null,null,null,null,null,null,null,null,null,null,null,null,null,null,86,1]
[null,null,null,null,"",null,null,null,null,null,null,null,null,null,null,null,null,"","","",null,null,null,null,null,null,null,null,null,null,null,null,null,null,87,1]
[null,null,null,null,"",null,null,null,null,null,null,null,null,null,null,null,null,"","","",null,null,null,null,null,null,null,null,null,null,null,null,null,null,88,1]
[null,null,null,null,"",null,null,null,null,null,null,null,null,null,null,null,null,"","","",null,null,null,null,null,null,null,null,null,null,null,null,null,null,89,1]
[null,null,null,null,"",null,null,null,null,null,null,null,null,null,null,null,null,"","","",null,null,null,null,null,null,null,null,null,null,null,null,null,null,90,1]
[null,null,null,null,"",null,null,null,null,null,null,null,null,null,null,null,null,"","","",null,null,null,null,null,null,null,null,null,null,null,null,null,null,91,1]
[null,null,null,null,"",null,null,null,null,null,null,null,null,null,null,null,null,"","","",null,null,null,null,null,null,null,null,null,null,null,null,null,null,92,1]
[null,null,null,null,"",null,null,null,null,null,null,null,null,null,null,null,null,"","","",null,null,null,null,null,null,null,null,null,null,null,null,null,null,93,1]
[null,null,null,null,"",null,null,null,null,null,null,null,null,null,null,null,null,"","","",null,null,null,null,null,null,null,null,null,null,null,null,null,null,94]
[null,null,null,null,"",null,null,null,null,null,null,null,null,null,null,null,null,"","","",null,null,null,null,null,null,null,null,null,null,null,null,null,null,95]
[null,null,null,null,"",null,null,null,null,null,null,null,null,null,null,null,null,"","",""]
[null,null,null,null,"",null,null,null,null,null,null,null,null,null,null,null,null,"","",""]
[null,null,null,null,"",null,null,null,null,null,null,null,null,null,null,null,null,"","",""]
[null,null,null,null,"",null,null,null,null,null,null,null,null,null,null,null,null,"","",""]
[null,null,null,null,"",null,null,null,null,null,null,null,null,null,null,null,null,"","",""]
[null,null,null,null,"",null,null,null,null,null,null,null,null,null,null,null,null,"","",""]
[null,null,null,null,"",null,null,null,null,null,null,null,null,null,null,null,null,"","",""]
[null,null,null,null,"",null,null,null,null,null,null,null,null,null,null,null,null,"","",""]
[null,null,null,null,"",null,null,null,null,null,null,null,null,null,null,null,null,"","",""]
[null,null,null,null,"",null,null,null,null,null,null,null,null,null,null,null,null,"","",""]
[null,null,null,null,"",null,null,null,null,null,null,null,null,null,null,null,null,"","",""]
[null,null,null,null,"",null,null,null,null,null,null,null,null,null,null,null,null,{"$f":"IF(A96=\"\",\"\",SUMIF($X$4:$X$9,A96,$Y$4:$Y$9))","v":""},{"$f":"IF(B96=\"\",\"\",SUMIF($Z$4:$AA$13,B96,$AA$4:$AA$13))","v":""},""]
[null,null,null,null,"",null,null,null,null,null,null,null,null,null,null,null,null,"","",""]
[null,null,null,null,"",null,null,null,null,null,null,null,null,null,null,null,null,"","",""]
[null,null,null,null,"",null,null,null,null,null,null,null,null,null,null,null,null,"","",""]
[null,null,null,null,"",null,null,null,null,null,null,null,null,null,null,null,null,"","",""]
[null,null,null,null,{"$f":"IF(D101=\"\",\"\",\"\")","v":""},null,null,null,null,null,null,null,null,null,null,null,null,"","",{"$f":"R101&S101","v":""}]
[null,null,null,null,"",null,null,null,null,null,null,null,null,null,null,null,null,"","",""]
[null,null,null,null,"",null,null,null,null,null,null,null,null,null,null,null,null,"","",""]
[null,null,null,null,"",null,null,null,null,null,null,null,null,null,null,null,null,"","",""]
[null,null,null,null,"",null,null,null,null,null,null,null,null,null,null,null,null,"","",""]
[null,null,null,null,"",null,null,null,null,null,null,null,null,null,null,null,null,"","",""]
[null,null,null,null,"",null,null,null,null,null,null,null,null,null,null,null,null,"","",""]
[null,null,null,null,"",null,null,null,null,null,null,null,null,null,null,null,null,"","",""]
[null,null,null,null,"",null,null,null,null,null,null,null,null,null,null,null,null,"","",""]
[null,null,null,null,"",null,null,null,null,null,null,null,null,null,null,null,null,"","",""]
[null,null,null,null,"",null,null,null,null,null,null,null,null,null,null,null,null,"","",""]
[null,null,null,null,"",null,null,null,null,null,null,null,null,null,null,null,null,"","",""]
[null,null,null,null,"",null,null,null,null,null,null,null,null,null,null,null,null,"","",""]
[null,null,null,null,"",null,null,null,null,null,null,null,null,null,null,null,null,"","",""]
[null,null,null,null,"",null,null,null,null,null,null,null,null,null,null,null,null,"","",""]
[null,null,null,null,"",null,null,null,null,null,null,null,null,null,null,null,null,"","",""]
[null,null,null,null,"",null,null,null,null,null,null,null,null,null,null,null,null,"","",""]
[null,null,null,null,"",null,null,null,null,null,null,null,null,null,null,null,null,"","",""]
[null,null,null,null,"",null,null,null,null,null,null,null,null,null,null,null,null,"","",""]
[null,null,null,null,"",null,null,null,null,null,null,null,null,null,null,null,null,"","",""]
[null,null,null,null,"",null,null,null,null,null,null,null,null,null,null,null,null,"","",""]
[null,null,null,null,"",null,null,null,null,null,null,null,null,null,null,null,null,"","",""]
[null,null,null,null,"",null,null,null,null,null,null,null,null,null,null,null,null,"","",""]
[null,null,null,null,"",null,null,null,null,null,null,null,null,null,null,null,null,"","",""]
[null,null,null,null,"",null,null,null,null,null,null,null,null,null,null,null,null,"","",""]
[null,null,null,null,"",null,null,null,null,null,null,null,null,null,null,null,null,"","",""]
[null,null,null,null,"",null,null,null,null,null,null,null,null,null,null,null,null,"","",""]
[null,null,null,null,"",null,null,null,null,null,null,null,null,null,null,null,null,{"$f":"IF(A128=\"\",\"\",SUMIF($X$4:$X$9,A128,$Y$4:$Y$9))","v":""},{"$f":"IF(B128=\"\",\"\",SUMIF($Z$4:$AA$13,B128,$AA$4:$AA$13))","v":""},""]
[null,null,null,null,"",null,null,null,null,null,null,null,null,null,null,null,null,"","",""]
[null,null,null,null,"",null,null,null,null,null,null,null,null,null,null,null,null,"","",""]
[null,null,null,null,"",null,null,null,null,null,null,null,null,null,null,null,null,"","",""]
[null,null,null,null,"",null,null,null,null,null,null,null,null,null,null,null,null,"","",""]
[null,null,null,null,{"$f":"IF(D133=\"\",\"\",\"\")","v":""},null,null,null,null,null,null,null,null,null,null,null,null,"","",{"$f":"R133&S133","v":""}]
[null,null,null,null,"",null,null,null,null,null,null,null,null,null,null,null,null,"","",""]
[null,null,null,null,"",null,null,null,null,null,null,null,null,null,null,null,null,"","",""]
[null,null,null,null,"",null,null,null,null,null,null,null,null,null,null,null,null,"","",""]
[]
[]
[]
[]
[]
[]
[null,null,null,null,null,null,null,null,null,null,null,null,null,null,null,null,null,null,null,null,null,null,null,null,null,null,null,null,null,null,null,null,null,null,68]